bitfinex-derivatives/quotes_BNBF0:USTF0_20250315
["timestamp","ask_amount","ask_price","bid_price","bid_amount"]
[1742082680759,2.46609351,619.95,618.17,0.89812656]
[1742082680959,2.46609351,619.95,618.18,0.89812656]
[1742082681153,2.46609351,619.95,618.19,0.89812656]
[1742082681359,2.46609351,619.95,618.2,0.89812656]
[1742082681560,2.46609351,619.95,618.21,0.89812656]
[1742082681760,2.46609351,619.95,618.22,0.89812656]
[1742082681960,2.46609351,619.95,618.23,0.89812656]
[1742082682160,2.46609351,619.95,618.24,0.89812656]
[1742082682459,2.46609351,619.95,618.25,0.89812656]
[1742082682655,2.46609351,619.95,618.26,0.89812656]
[1742082682860,2.46609351,619.91,618.27,0.89812656]
[1742082683053,2.46609351,619.91,618.28,0.89812656]
[1742082683256,2.46609351,619.91,618.29,0.89812656]
[1742082683460,2.46609351,619.91,618.3,0.89812656]
[1742082683659,2.46609351,619.91,618.31,0.89812656]
[1742082683860,2.46609351,619.91,618.32,0.89812656]
[1742082684060,2.46609351,619.91,618.33,0.89812656]
[1742082684261,2.46609351,619.91,618.34,0.89812656]
[1742082684463,2.46609351,619.81,618.35,0.89812656]
[1742082684662,2.46609351,619.81,618.36,0.89756293]
[1742082684862,2.46609351,619.81,617.99,0.32362983]
[1742082685163,2.46609351,619.81,618.0,0.8975837]
[1742082685362,2.46609351,619.81,618.01,0.8975837]
[1742082685556,2.46609351,619.81,618.02,0.8975837]
[1742082685760,2.46609351,619.81,618.03,0.8975837]
[1742082686062,2.46609351,619.81,618.04,0.8975837]
[1742082686363,2.46609351,619.81,618.05,0.8975837]
[1742082686564,2.46609351,619.81,617.99,0.32362983]
[1742082686565,2.46609351,619.81,618.06,0.8975837]
[1742082686858,2.46609351,619.81,618.07,0.8975837]
[1742082687062,2.46609351,619.81,617.99,0.32362983]
[1742082687063,2.46609351,619.81,618.08,0.8975837]
[1742082687264,2.46609351,619.81,618.09,0.8975837]
[1742082687458,2.46609351,619.81,618.1,0.8975837]
[1742082687663,2.46609351,619.85,618.11,0.8975837]
[1742082687863,2.46609351,619.85,618.12,0.8975837]
[1742082688064,2.46609351,619.85,618.13,0.8975837]
[1742082688265,2.46609351,619.85,618.14,0.8975837]
[1742082688461,2.46609351,619.85,618.15,0.8975837]
[1742082688660,2.46609351,619.85,618.16,0.8975837]
[1742082688858,2.46609351,619.85,618.17,0.89683432]
[1742082689064,2.46609351,619.85,618.18,0.89683432]
[1742082689265,2.85909857,620.15,618.19,0.89683432]
[1742082689564,2.85909857,620.15,618.2,0.89683432]
[1742082689767,2.85909857,620.15,618.21,0.89683432]
[1742082689963,2.85909857,620.15,618.22,0.89683432]
[1742082690161,2.85909857,620.15,618.23,0.89683432]
[1742082690363,2.85909857,620.15,618.24,0.89683432]
[1742082690564,2.85909857,620.15,618.25,0.89683432]
[1742082690765,2.85909857,620.33,618.26,0.89683432]
[1742082690963,2.85909857,620.33,618.27,0.89683432]
[1742082691263,6.83016785,620.33,618.28,0.89683432]
[1742082691466,3.97106928,620.32,618.29,0.89683432]
[1742082691769,3.97106928,620.31,618.3,0.89683432]
[1742082691970,3.97106928,620.3,618.31,0.89683432]
[1742082692270,3.97106928,620.29,618.32,0.89683432]
[1742082692471,3.97106928,620.28,618.33,0.89683432]
[1742082692671,3.97106928,620.27,618.34,0.89683432]
[1742082692973,3.97106928,620.26,618.35,0.89675468]
[1742082693271,6.83016785,620.25,618.36,0.89675468]
[1742082693472,3.97106928,620.24,618.37,0.89675468]
[1742082693669,3.97106928,620.23,618.38,0.89675468]
[1742082693864,3.97106928,620.22,618.39,0.89675468]
[1742082694173,3.97106928,620.21,618.4,0.89675468]
[1742082694467,3.97106928,620.2,618.41,0.89675468]
[1742082694673,3.97106928,620.19,618.42,0.89675468]
[1742082694872,3.97106928,620.18,618.43,0.89675468]
[1742082695070,2.85909857,620.19,618.44,0.89673622]
[1742082695269,2.85909857,620.19,618.45,0.89673622]
[1742082695469,2.85909857,620.19,618.46,0.89673622]
[1742082695769,2.85909857,620.19,618.47,0.89673622]
[1742082695968,2.85909857,620.19,617.99,0.32362983]
[1742082696174,2.85909857,620.19,618.0,0.89675106]
[1742082696374,3.97106928,620.35,618.01,0.89675106]
[1742082696572,3.97106928,620.34,618.02,0.89675106]
[1742082696771,3.97106928,620.33,618.03,0.89675106]
[1742082696972,3.97106928,620.32,618.04,0.89675106]
[1742082697168,3.97106928,620.31,618.05,0.89698884]
[1742082697373,3.97106928,620.3,618.06,0.89698884]
[1742082697573,3.97106928,620.29,618.07,0.89698884]
[1742082697868,3.97106928,620.28,618.08,0.89698884]
[1742082698073,3.97106928,620.27,618.09,0.89698884]
[1742082698273,3.97106928,620.26,618.1,0.89698884]
[1742082698474,3.97106928,620.25,618.11,0.89698884]
[1742082698774,3.97106928,620.24,618.12,0.89698884]
[1742082698967,3.97106928,620.23,618.13,0.89698884]
[1742082699170,3.97106928,620.22,618.14,0.89698884]
[1742082699368,3.97106928,620.21,618.15,0.89698884]
[1742082699571,3.97106928,620.2,618.16,0.89698884]
[1742082699769,3.97106928,620.19,618.17,0.89698884]
[1742082699974,3.97106928,620.19,617.99,0.32362983]
[1742082699975,3.97106928,620.18,618.18,0.89698884]
[1742082700168,3.97106928,620.17,618.19,0.89698884]
[1742082700374,3.97106928,620.16,618.2,0.89698884]
[1742082700570,3.97106928,620.15,618.21,0.89698884]
[1742082700772,3.97106928,620.14,618.22,0.89698884]
[1742082700973,3.97106928,620.13,618.23,0.89698884]
[1742082701172,3.97106928,620.12,618.24,0.89698884]
[1742082701474,3.97106928,620.12,617.99,0.32362983]
[1742082701475,3.97029281,620.11,618.25,0.89683018]
[1742082701772,2.85909857,620.12,618.26,0.89683018]
[1742082701977,2.85909857,620.12,618.27,0.89683018]
[1742082702179,2.85909857,620.12,618.28,0.89683018]
[1742082702376,2.85909857,620.12,618.29,0.89683018]
[1742082702570,2.85909857,620.12,618.3,0.89683018]
[1742082702775,2.85909857,620.12,618.31,0.89683018]
[1742082702976,2.85909857,620.12,618.32,0.89683018]
[1742082703172,2.85909857,620.12,618.33,0.89683018]
[1742082703375,2.85909857,620.29,618.34,0.89670403]
[1742082703577,2.85909857,620.29,618.35,0.89670403]
[1742082703780,2.85909857,620.29,618.36,0.89670403]
[1742082703979,2.85909857,620.29,618.37,0.89670403]
[1742082704176,2.85909857,620.29,618.38,0.89670403]
[1742082704377,2.85909857,620.29,618.39,0.89670403]
[1742082704577,2.85909857,620.29,618.4,0.89670403]
[1742082704780,2.85909857,620.29,618.41,0.89670403]
[1742082704982,2.85909857,620.29,618.42,0.89670403]
[1742082705280,2.85909857,620.29,617.99,0.32362983]
[1742082705581,2.85909857,620.29,618.0,0.89671289]
[1742082705775,2.85909857,620.29,618.01,0.89671289]
[1742082705977,2.85909857,620.29,618.02,0.89671289]
[1742082706282,2.85909857,620.29,618.03,0.89671289]
[1742082706482,2.85909857,620.29,618.04,0.89671289]
[1742082706684,5.32519208,620.29,618.05,0.89671289]
[1742082706883,3.97025878,620.28,618.06,0.89671289]
[1742082707081,3.97025878,620.28,618.07,0.89671289]
[1742082707277,3.97025878,620.28,618.08,0.89671289]
[1742082707483,3.97025878,620.28,618.09,0.89671289]
[1742082707685,3.97025878,620.28,618.1,0.89671289]
[1742082707885,3.97025878,620.28,618.11,0.89671289]
[1742082708086,3.97025878,620.28,618.12,0.89671289]
[1742082708286,3.97025878,620.28,618.13,0.89671289]
[1742082708483,3.97025878,620.28,618.14,0.89671289]
[1742082708681,3.97025878,620.28,618.15,0.89671289]
[1742082708885,2.85909857,620.27,618.16,0.89671289]
[1742082709085,2.46609351,619.64,618.17,0.89671289]
[1742082709282,2.46609351,619.64,618.18,0.89671289]
[1742082709482,2.46609351,619.64,618.19,0.89671289]
[1742082709782,2.46609351,619.64,618.2,0.89671289]
[1742082709986,2.46609351,619.64,618.21,0.89671289]
[1742082710183,2.46609351,619.64,618.22,0.89671289]
[1742082710385,2.46609351,619.64,618.23,0.89671289]
[1742082710588,2.46609351,619.64,618.24,0.89671289]
[1742082710789,2.46609351,619.64,618.25,0.89671289]
[1742082710985,2.46609351,619.64,618.26,0.89671289]
[1742082711190,2.46609351,619.64,618.27,0.89671289]
[1742082711489,2.46609351,619.71,618.28,0.89671289]
[1742082711681,2.46609351,619.71,618.29,0.89671289]
[1742082711886,2.46609351,619.71,618.3,0.89671289]
[1742082712082,2.46609351,619.71,618.31,0.89671289]
[1742082712285,2.46609351,619.71,617.99,0.32362983]
[1742082712286,2.46609351,619.71,618.32,0.89671289]
[1742082712487,2.46609351,619.71,618.33,0.89671289]
[1742082712683,2.46609351,619.71,618.34,0.89671289]
[1742082712983,3.97025878,619.87,618.35,0.89671289]
[1742082712984,2.46609351,619.64,618.35,0.89671289]
[1742082713187,2.46609351,619.64,618.36,0.89671289]
[1742082713386,2.46609351,619.64,618.37,0.89671289]
[1742082713587,2.46609351,619.64,618.38,0.89671289]
[1742082713888,2.46609351,619.64,618.39,0.89671289]
[1742082714088,2.46609351,619.64,618.4,0.89671289]
[1742082714283,2.46609351,619.64,617.99,0.32362983]
[1742082714284,2.46609351,619.64,618.41,0.89671289]
[1742082714490,2.46609351,619.64,618.42,0.89671289]
[1742082714687,2.46609351,619.64,618.43,0.89671289]
[1742082714883,2.46609351,619.64,618.44,0.89671289]
[1742082715087,2.46609351,619.7,617.99,0.32362983]
[1742082715384,2.46609351,619.7,618.0,0.89718139]
[1742082715588,2.46609351,619.7,618.01,0.89718139]
[1742082715791,2.46609351,619.7,618.02,0.89718139]
[1742082715989,2.46609351,619.7,618.03,0.89718139]
[1742082716188,2.46609351,619.7,618.04,0.89718139]
[1742082716387,2.46609351,619.7,618.05,0.89718139]
[1742082716588,2.46609351,619.7,618.06,1.22077456]
[1742082716887,2.46609351,619.7,618.07,0.89718139]
[1742082717090,2.46609351,619.7,618.08,0.89718139]
[1742082717391,2.46609351,619.7,618.09,0.89718139]
[1742082717584,2.46609351,619.7,618.1,0.89718139]
[1742082717789,2.46609351,619.7,618.11,0.89718139]
[1742082717986,2.46609351,619.7,618.06,0.32359317]
[1742082717987,2.46609351,619.71,618.12,1.19418705]
[1742082718191,2.46609351,619.71,618.13,0.89718139]
[1742082718391,2.46609351,619.71,618.14,0.89718139]
[1742082718589,2.46609351,619.71,618.15,0.89718139]
[1742082718790,2.46609351,619.71,618.16,1.22072222]
[1742082718987,2.46609351,619.71,618.17,0.89718139]
[1742082719291,2.46609351,619.71,618.18,0.89718139]
[1742082719492,2.46609351,619.71,618.19,0.89718139]
[1742082719791,2.46609351,619.71,618.2,0.89718139]
[1742082720094,2.46609351,619.71,618.21,0.89718139]
[1742082720287,2.46609351,619.71,618.22,0.89718139]
[1742082720484,2.46609351,619.71,618.23,0.89718139]
[1742082720787,2.46609351,619.71,618.16,0.32354083]
[1742082720788,2.46609351,620.3,618.24,0.89718139]
[1742082720994,2.46609351,620.3,618.25,0.89718139]
[1742082721293,2.46609351,620.3,618.26,0.89718139]
[1742082721490,2.46609351,620.3,618.27,0.89718139]
[1742082721691,2.46609351,620.3,618.28,0.89718139]
[1742082721893,2.46609351,620.3,618.29,0.89718139]
[1742082722193,2.46609351,620.3,618.3,0.89718139]
[1742082722393,2.46609351,620.3,618.31,0.89718139]
[1742082722593,2.46609351,620.3,618.32,0.89718139]
[1742082722794,2.46609351,620.3,618.33,0.89718139]
[1742082723095,2.46609351,620.3,618.34,0.89718139]
[1742082723295,2.46609351,620.37,618.35,0.89718139]
[1742082723494,2.46609351,620.37,618.36,0.89718139]
[1742082723695,2.46609351,620.37,618.37,0.89718139]
[1742082723996,2.46609351,620.37,618.38,0.89718139]
[1742082724197,2.46609351,620.37,618.39,0.89718139]
[1742082724397,2.46609351,620.37,618.4,0.89718139]
[1742082724596,2.46609351,620.37,618.41,0.89718139]
[1742082724897,2.46609351,620.37,618.42,0.89718139]
[1742082725095,2.46609351,620.42,618.43,0.89438128]
[1742082725395,2.46609351,620.42,618.44,0.89438128]
[1742082725591,2.46609351,620.42,618.45,0.89438128]
[1742082725895,2.46609351,620.42,618.46,0.89438128]
[1742082726096,2.46609351,620.42,618.47,0.89438128]
[1742082726296,2.46609351,620.42,618.48,0.89438128]
[1742082726596,2.46609351,620.42,618.16,0.32354083]
[1742082726597,2.46609351,620.42,618.49,0.89438128]
[1742082726792,2.46609351,620.42,618.16,0.32354083]
[1742082726793,2.46609351,620.42,618.5,0.89438128]
[1742082726996,2.46609351,620.46,618.51,0.89438128]
[1742082727195,2.46609351,620.46,618.52,0.89438128]
[1742082727394,2.46609351,620.46,618.53,0.89438128]
[1742082727591,2.46609351,620.46,618.54,0.89438128]
[1742082727795,2.46609351,620.46,618.55,0.89438128]
[1742082727992,2.46609351,620.46,618.56,0.89438128]
[1742082728193,2.46609351,620.46,618.57,0.89438128]
[1742082728395,2.46609351,620.46,618.58,0.89438128]
[1742082728594,2.46609351,620.46,618.59,0.89438128]
[1742082728794,2.46609351,620.45,618.6,0.89438128]
[1742082729098,2.46609351,620.45,618.61,0.89438128]
[1742082729299,2.46609351,620.45,618.62,0.89438128]
[1742082729500,2.46609351,620.45,618.63,0.89438128]
[1742082729698,2.46609351,620.45,618.16,0.32354083]
[1742082729897,2.46609351,620.45,618.17,1.19072478]
[1742082730094,2.46609351,620.45,618.18,1.51425514]
[1742082730292,2.46609351,620.45,618.19,1.5142499]
[1742082730495,2.46609351,620.1,618.2,1.51424467]
[1742082730797,2.46609351,620.1,618.21,1.51423944]
[1742082730997,2.46609351,620.1,618.22,1.51423421]
[1742082731200,2.46609351,620.1,618.23,1.19072478]
[1742082731399,2.46609351,620.1,618.24,1.19072445]
[1742082731600,2.46609351,620.1,618.25,1.19072445]
[1742082731798,2.46609351,620.1,618.26,0.89376588]
[1742082732000,2.46609351,620.1,618.27,0.89376588]
[1742082732204,2.46609351,620.1,618.28,0.89376588]
[1742082732403,2.46609351,620.1,618.29,0.89376588]
[1742082732598,2.46609351,620.1,618.3,0.89376588]
[1742082732804,2.46609351,620.1,618.31,0.89376588]
[1742082733005,2.46609351,620.1,618.32,0.89376588]
[1742082733309,2.46609351,620.1,618.33,0.89376588]
[1742082733501,2.46609351,620.1,618.34,0.89376588]
[1742082733699,2.46609351,620.1,618.35,0.89376588]
[1742082733902,2.46609351,620.1,618.36,0.89376588]
[1742082734101,2.46609351,620.1,618.37,0.89376588]
[1742082734300,2.46609351,620.1,618.38,0.89376588]
[1742082734503,3.97024663,620.31,618.39,0.89376588]
[1742082734700,3.97024663,620.3,618.4,0.89376588]
[1742082734903,3.97024663,620.29,618.41,0.89376588]
[1742082735100,3.97024663,620.28,618.42,0.89376588]
[1742082735405,3.97024663,620.28,618.22,0.32350943]
[1742082735406,6.82759056,620.27,618.43,0.89376588]
[1742082735597,3.97024663,620.26,618.44,0.89376588]
[1742082735803,3.97024663,620.25,618.45,0.89376588]
[1742082736003,3.97024663,620.24,618.46,0.89376588]
[1742082736200,3.97024663,620.23,618.47,0.89376588]
[1742082736400,3.97024663,620.22,618.48,0.89376588]
[1742082736604,3.97024663,620.21,618.49,0.89376588]
[1742082736803,3.97024663,620.2,618.5,0.89376588]
[1742082737002,6.82759056,620.19,618.51,0.89376588]
[1742082737202,2.85734393,620.19,618.52,0.89376588]
[1742082737404,2.85734393,620.19,618.53,0.89315413]
[1742082737699,2.85734393,620.19,618.54,0.89315413]
[1742082737902,2.85734393,620.19,618.55,0.89315413]
[1742082738100,2.85734393,620.19,618.56,0.89315413]
[1742082738303,2.85734393,620.19,618.57,0.89315413]
[1742082738502,2.85734393,620.19,618.58,0.89315413]
[1742082738699,2.85734393,620.19,618.22,0.32350943]
[1742082738903,2.85734393,620.19,618.23,0.89298001]
[1742082739102,2.85734393,620.39,618.24,0.89298001]
[1742082739298,2.85734393,620.39,618.25,0.89284325]
[1742082739501,6.82759056,620.39,618.26,0.89284325]
[1742082739705,6.82759056,620.39,618.27,0.89284325]
[1742082739905,6.82759056,620.39,618.28,0.89284325]
[1742082740106,6.82759056,620.39,618.29,0.89284325]
[1742082740306,6.82759056,620.39,618.3,0.89284325]
[1742082740506,6.82759056,620.39,618.31,0.89284325]
[1742082740707,6.82759056,620.39,618.32,0.89284325]
[1742082740913,6.82759056,620.39,618.33,0.89284325]
[1742082741212,6.82759056,620.39,618.34,0.89284325]
[1742082741413,2.85734393,620.38,618.35,0.89284325]
[1742082741712,2.85734393,620.38,618.36,0.89284325]
[1742082741906,2.85734393,620.38,618.37,0.89284325]
[1742082742104,2.85734393,620.38,618.22,0.32350943]
[1742082742105,2.85734393,620.38,618.38,0.89284325]
[1742082742312,2.85734393,620.38,618.22,0.32350943]
[1742082742313,2.85734393,620.38,618.39,0.89284325]
[1742082742511,2.85734393,620.38,618.4,0.89284325]
[1742082742713,2.85734393,620.38,618.41,0.89284325]
[1742082742914,2.85734393,620.43,618.42,0.89284325]
[1742082743114,2.85734393,620.43,618.43,0.89284325]
[1742082743315,2.46609351,620.21,618.44,0.89284325]
[1742082743514,2.46609351,620.21,618.45,0.89284325]
[1742082743711,2.46609351,620.21,618.46,0.89284325]
[1742082743914,2.46609351,620.21,618.47,0.89284325]
[1742082744110,2.46609351,620.21,618.48,0.89284325]
[1742082744310,2.46609351,620.21,618.49,0.89284325]
[1742082744614,2.46609351,620.21,618.5,0.89284325]
[1742082744813,2.46609351,620.21,618.51,0.89284325]
[1742082745015,2.46609351,620.21,618.22,0.32350943]
[1742082745016,2.46609351,620.21,618.52,0.89284325]
[1742082745215,2.46609351,620.21,618.53,0.89284325]
[1742082745517,2.46609351,620.21,618.54,0.89284325]
[1742082745815,2.46609351,620.14,618.55,0.89284325]
[1742082746015,2.46609351,620.14,618.56,0.89284325]
[1742082746218,2.46609351,620.14,618.57,0.89284325]
[1742082746416,2.46609351,620.14,618.58,0.8921652]
[1742082746617,2.46609351,620.14,618.22,0.32350943]
[1742082746815,2.46609351,620.14,618.23,0.89215821]
[1742082747015,2.46609351,620.14,618.24,0.89215821]
[1742082747217,2.46609351,620.15,618.25,0.89221541]
[1742082747414,2.46609351,620.15,618.26,0.89221541]
[1742082747614,2.46609351,620.15,618.27,0.89221541]
[1742082747811,2.46609351,620.15,618.28,0.89221541]
[1742082748011,2.46609351,620.15,618.29,0.89221541]
[1742082748214,2.46609351,620.15,618.3,0.89221541]
[1742082748414,2.46609351,620.15,618.31,0.89221541]
[1742082748611,2.46609351,620.15,618.32,0.89221541]
[1742082748812,2.46609351,620.15,618.33,0.89221541]
[1742082749015,2.46609351,620.15,618.34,0.89221541]
[1742082749212,2.46609351,620.15,618.35,0.89221541]
[1742082749414,2.46609351,620.15,618.22,1.03650943]
[1742082749415,2.46609351,620.19,618.36,0.89221541]
[1742082749614,2.46609351,620.19,618.37,0.89221541]
[1742082749817,2.46609351,620.19,618.38,0.89221541]
[1742082750013,2.46609351,620.19,618.39,0.89221541]
[1742082750216,2.46609351,620.19,618.4,0.89221541]
[1742082750417,2.46609351,620.19,618.41,0.89221541]
[1742082750616,2.46609351,620.19,618.42,0.89221541]
[1742082750813,2.46609351,620.19,618.43,0.89221541]
[1742082751012,2.46609351,620.19,618.44,0.89221541]
[1742082751215,2.46609351,620.19,618.45,0.89221541]
[1742082751414,2.46609351,620.19,618.46,0.89221541]
[1742082751618,2.46609351,620.05,618.47,0.89221541]
[1742082751821,2.46609351,620.05,618.48,0.89221541]
[1742082752012,2.46609351,620.05,618.49,0.89221541]
[1742082752217,2.46609351,620.05,618.5,0.89221541]
[1742082752414,2.46609351,620.05,618.51,0.89221541]
[1742082752618,2.46609351,620.05,618.52,0.89221541]
[1742082752820,2.46609351,620.05,618.53,0.89221541]
[1742082753019,2.46609351,620.05,618.54,0.89221541]
[1742082753214,2.46609351,620.05,618.55,0.89221541]
[1742082753516,2.46609351,620.05,618.56,0.89221541]
[1742082753720,2.46609351,620.05,618.57,0.89221541]
[1742082753921,2.46609351,620.05,618.23,0.847]
[1742082753922,2.46609351,620.11,618.58,0.89221541]
[1742082754220,2.46609351,620.11,618.59,0.89221541]
[1742082754421,2.46609351,620.11,618.6,0.89221541]
[1742082754623,2.46609351,620.11,618.61,0.89221541]
[1742082754821,2.46609351,620.11,618.62,0.89221541]
[1742082755018,2.46609351,620.11,618.32,0.766]
[1742082755019,2.46609351,620.11,618.63,0.89221541]
[1742082755225,2.46609351,620.11,618.64,0.89221541]
[1742082755524,2.46609351,620.11,618.65,0.89221541]
[1742082755823,2.46609351,620.11,618.66,0.89221541]
[1742082756019,2.46609351,620.11,618.67,0.89221541]
[1742082756223,2.46609351,620.11,618.68,0.89221541]
[1742082756425,2.46609351,620.11,618.69,0.89221541]
[1742082756618,2.46609351,620.11,618.7,0.89221541]
[1742082756823,2.46609351,620.08,618.71,0.89221541]
[1742082757022,2.46609351,620.08,618.72,0.89221541]
[1742082757218,2.46609351,620.08,618.73,0.89221541]
[1742082757425,2.46609351,620.08,618.74,0.89221541]
[1742082757625,2.46609351,620.08,618.75,0.89221541]
[1742082757925,2.46609351,620.08,618.76,0.89221541]
[1742082758124,2.46609351,620.08,618.77,0.89221541]
[1742082758323,2.46609351,620.08,618.78,0.89221541]
[1742082758524,2.46609351,620.37,618.79,0.89221541]
[1742082758827,2.46609351,620.37,618.8,0.89221541]
[1742082759023,2.46609351,620.37,618.81,0.89221541]
[1742082759323,2.46609351,620.37,618.33,0.32345187]
[1742082759624,2.46609351,620.37,618.34,1.18704903]
[1742082759818,2.46609351,620.37,618.35,1.51049044]
[1742082760017,2.46609351,620.37,618.36,1.21364879]
[1742082760224,2.46609351,620.51,618.37,1.51047783]
[1742082760425,2.46609351,620.51,618.38,1.5104726]
[1742082760619,2.46609351,620.51,618.39,1.2136331]
[1742082760823,2.46609351,620.51,618.4,1.21362787]
[1742082761019,2.46609351,620.51,618.41,0.89021261]
[1742082761223,2.46609351,620.51,618.4,0.32341526]
[1742082761224,2.46609351,620.51,618.42,0.89021261]
[1742082761423,2.46609351,620.51,618.43,1.21361218]
[1742082761628,2.46609351,620.51,618.44,1.2134675]
[1742082761821,2.46609351,620.58,618.45,1.21346227]
[1742082762025,2.46609351,620.58,618.46,0.89007316]
[1742082762227,2.46609351,620.58,618.47,0.89007316]
[1742082762527,2.46609351,620.58,618.48,0.89007316]
[1742082762826,2.46609351,620.58,618.49,0.89007316]
[1742082763027,2.46609351,620.58,618.5,0.89007316]
[1742082763227,2.46609351,620.58,618.51,0.89007316]
[1742082763426,2.46609351,620.58,618.52,0.89007316]
[1742082763621,2.46609351,620.58,618.53,0.89007316]
[1742082763827,2.46609351,620.58,618.54,0.89007316]
[1742082764027,3.95423746,620.6,618.55,0.89007316]
[1742082764227,3.95423746,620.59,618.56,0.89007316]
[1742082764420,3.95423746,620.58,618.57,0.89007316]
[1742082764632,3.95423746,620.57,618.58,0.89007316]
[1742082764820,3.95423746,620.56,618.59,0.89007316]
[1742082765028,3.95423746,620.55,618.6,0.89007316]
[1742082765228,3.95423746,620.54,618.61,0.89007316]
[1742082765430,2.84764661,620.61,618.62,0.89007316]
[1742082765627,6.79954359,620.61,618.63,0.89007316]
[1742082765824,6.79954359,620.61,618.64,0.89007316]
[1742082766029,6.79954359,620.61,618.65,0.89007316]
[1742082766229,2.84764661,620.6,618.66,0.89007316]
[1742082766530,2.84764661,620.6,618.67,0.89007316]
[1742082766730,2.84764661,620.6,618.68,0.89007316]
[1742082766932,2.84764661,620.6,618.69,0.89007316]
[1742082767131,2.84764661,620.6,618.7,0.89007316]
[1742082767330,2.84764661,620.6,618.71,0.89007316]
[1742082767626,2.84764661,620.6,618.72,0.89007316]
[1742082767825,2.84764661,620.6,618.73,0.89007316]
[1742082768026,2.84764661,620.6,618.74,0.89007316]
[1742082768230,2.84764661,620.76,618.75,0.89007316]
[1742082768426,2.84764661,620.76,618.76,0.89007316]
[1742082768627,2.84764661,620.76,618.77,0.89007316]
[1742082768830,2.84764661,620.76,618.78,0.89007316]
[1742082769032,2.84764661,620.76,618.79,0.89007316]
[1742082769235,2.84764661,620.76,618.8,0.89023614]
[1742082769432,2.84764661,620.76,618.45,0.32338911]
[1742082769635,2.84764661,620.76,618.46,0.89016625]
[1742082769836,2.84764661,620.76,618.47,0.89016625]
[1742082770034,2.84764661,620.76,618.48,0.89016625]
[1742082770238,2.84764661,620.76,618.49,0.89016625]
[1742082770435,2.84764661,620.78,618.5,0.89016625]
[1742082770635,2.46609351,620.68,618.51,0.89016625]
[1742082770836,2.46609351,620.68,618.52,0.89016625]
[1742082771037,2.46609351,620.68,618.53,0.89016625]
[1742082771233,2.46609351,620.68,618.54,0.89016625]
[1742082771438,2.46609351,620.68,618.55,0.89016625]
[1742082771639,2.46609351,620.68,618.56,0.89016625]
[1742082771834,2.46609351,620.68,618.57,0.89016625]
[1742082772039,2.46609351,620.68,618.58,0.89016625]
[1742082772234,2.46609351,620.68,618.59,0.89048554]
[1742082772439,2.46609351,620.68,618.6,0.89048554]
[1742082772639,2.46609351,620.68,618.61,0.89048554]
[1742082772836,2.46609351,620.68,618.62,0.89048554]
[1742082773036,2.46609351,620.68,618.63,0.89048554]
[1742082773241,2.46609351,620.64,618.64,0.89048554]
[1742082773541,2.46609351,620.64,618.65,0.89048554]
[1742082773741,2.46609351,620.64,618.66,0.89048554]
[1742082773935,2.46609351,620.64,618.67,0.89048554]
[1742082774138,2.46609351,620.64,618.68,0.89048554]
[1742082774336,2.46609351,620.64,618.69,0.89048554]
[1742082774642,2.46609351,620.64,618.7,0.89048554]
[1742082774841,2.46609351,620.64,618.45,0.32338911]
[1742082774842,2.46609351,620.64,618.71,0.89048554]
[1742082775044,2.46609351,620.64,618.72,0.89048554]
[1742082775239,2.46609351,620.51,618.73,0.89048554]
[1742082775436,2.46609351,620.51,618.74,0.89048554]
[1742082775639,2.46609351,620.51,618.75,0.89048554]
[1742082775841,2.46609351,620.51,618.76,0.89048554]
[1742082776035,2.46609351,620.51,618.77,0.89048554]
[1742082776238,2.46609351,620.51,618.78,0.89048554]
[1742082776435,2.46609351,620.51,618.79,0.89048554]
[1742082776639,2.46609351,620.51,618.8,0.89048554]
[1742082776840,2.46609351,620.51,618.81,0.89048554]
[1742082777038,2.46609351,620.51,618.82,0.89048554]
[1742082777238,2.46609351,620.47,618.83,0.8913217]
[1742082777443,2.46609351,620.47,618.45,0.32338911]
[1742082777738,2.46609351,620.47,618.46,1.18814148]
[1742082777942,2.46609351,620.47,618.47,1.18814148]
[1742082778143,2.46609351,620.47,618.48,0.89130173]
[1742082778338,2.46609351,620.47,618.49,0.89159931]
[1742082778643,2.46609351,620.47,618.5,0.89159931]
[1742082778839,2.46609351,620.47,618.51,0.89159931]
[1742082779046,2.46609351,620.47,618.52,0.89159931]
[1742082779245,2.46609351,620.47,618.53,0.89159931]
[1742082779446,2.46609351,620.47,618.54,0.89159931]
[1742082779642,2.46609351,620.47,618.45,0.32338911]
[1742082779643,2.46609351,620.43,618.55,0.89159931]
[1742082779943,2.46609351,620.43,618.56,0.89159931]
[1742082780148,2.46609351,620.43,618.57,0.89159931]
[1742082780348,2.46609351,620.43,618.58,0.89159931]
[1742082780545,2.46609351,620.43,618.59,0.89159931]
[1742082780743,2.46609351,620.43,618.6,0.89159931]
[1742082780942,2.46609351,620.43,618.61,0.89159931]
[1742082781143,2.46609351,620.43,618.62,0.89159931]
[1742082781345,2.46609351,620.43,618.63,0.89159931]
[1742082781543,2.46609351,620.43,618.64,0.89159931]
[1742082781747,2.46609351,620.3,618.65,0.89159931]
[1742082781949,2.46609351,620.3,618.66,0.89159931]
[1742082782142,2.46609351,620.3,618.67,0.89159931]
[1742082782345,2.46609351,620.3,618.68,0.89159931]
[1742082782544,2.46609351,620.3,618.45,0.32338911]
[1742082782545,2.46609351,620.3,618.69,0.89159931]
[1742082782748,2.46609351,620.3,618.7,0.89159931]
[1742082782955,2.46609351,620.3,618.71,0.89159931]